bitfinex/quotes_ETHUSD_20240722
["timestamp","ask_amount","ask_price","bid_price","bid_amount"]
[1721677546332,2.87018,3496.3,3495.6,4.05005]
[1721677546662,2.87017,3496.3,3495.6,1.18939]
[1721677546830,2.86025,3496.2,3495.6,1.18939]
[1721677547031,2.86025,3496.2,3495.6,4.05011]
[1721677548044,2.86033,3496.1,3495.6,1.18939]
[1721677548240,2.87016,3496.3,3495.7,0.911304]
[1721677548483,2.87016,3496.3,3495.7,3.771954]
[1721677549311,2.87016,3496.3,3495.7,0.911304]
[1721677549445,2.87016,3496.3,3495.4,2.202]
[1721677549446,2.8604,3496.1,3495.4,2.202]
[1721677549888,2.8604,3496.1,3495.5,2.86077]
[1721677550102,2.87021,3496.3,3495.6,2.86069]
[1721677550388,2.86029,3496.2,3495.6,2.86069]
[1721677550573,2.86029,3496.2,3495.6,4.106959]
[1721677550748,2.86029,3496.2,3495.6,4.106949]
[1721677551380,0.01,3496.3,3495.6,1.246269]
[1721677551554,0.01,3496.3,3496.2,2.202]
[1721677552193,0.01,3496.3,3496.2,2.86024]
[1721677552348,0.01,3496.3,3496.2,3.6715]
[1721677552554,0.01,3496.3,3496.2,0.81126]
[1721677552791,0.01,3496.3,3495.6,3.573769]
[1721677553111,2.86051,3495.9,3495.3,7.4]
[1721677553253,2.86048,3496.0,3495.3,7.4]
[1721677553452,2.86051,3495.9,3495.3,7.4]
[1721677554008,2.86058,3495.8,3495.3,7.4]
[1721677554493,0.01,3496.3,3495.2,2.202]
[1721677554702,0.35,3496.2,3495.5,2.86081]
[1721677554882,0.35,3496.2,3495.2,2.202]
[1721677555089,2.3809,3496.3,3495.3,2.8609]
[1721677555454,2.86024,3496.2,3495.2,2.202]
[1721677555651,2.86042,3496.0,3495.0,2.4144]
[1721677555949,2.3809,3496.3,3494.9,7.4]
[1721677555950,2.86033,3496.1,3494.9,7.4]
[1721677556180,2.86042,3496.0,3494.9,10.26129]
[1721677556352,2.8605,3495.9,3494.9,7.4]
[1721677556552,2.86059,3495.8,3494.9,7.4]
[1721677557691,3.43267,3495.8,3494.9,7.4]
[1721677557986,3.0,3495.7,3494.9,7.4]
[1721677558188,2.86074,3495.6,3494.9,7.4]
[1721677558392,3.0,3495.5,3494.9,7.4]
[1721677558592,5.86082,3495.5,3494.9,7.4]
[1721677559660,3.0,3495.5,3494.9,7.4]
[1721677559858,5.86075,3495.6,3494.9,7.4]
[1721677560194,0.01,3496.3,3495.0,2.2579]
[1721677560557,0.01,3496.3,3495.4,2.8609]
[1721677560758,0.01,3496.3,3495.5,2.8608]
[1721677561154,2.87022,3496.3,3495.5,2.86081]
[1721677561790,2.87022,3496.3,3495.0,2.2579]
[1721677561791,2.86054,3495.9,3495.0,2.2579]
[1721677561994,2.86059,3495.8,3494.8,2.202]
[1721677562199,2.4204,3496.2,3494.6,12.58084]
[1721677562200,2.86081,3495.6,3494.6,12.58084]
[1721677562353,2.86094,3495.4,3494.6,9.7193]
[1721677563053,2.86077,3495.6,3494.6,12.58085]
[1721677563252,2.86077,3495.6,3494.6,15.49821562]
[1721677563253,2.86087,3495.5,3494.6,15.49821562]
[1721677563574,2.86098,3495.3,3494.6,12.63666562]
[1721677563773,2.86107,3495.2,3494.6,2.91736562]
[1721677564100,2.86107,3495.2,3494.4,2.202]
[1721677564678,2.86107,3495.2,3494.3,7.4]
[1721677564876,2.86069,3495.7,3494.3,7.4]
[1721677564877,2.86123,3495.1,3494.3,7.4]
[1721677565111,2.412,3495.4,3494.3,7.4]
[1721677565402,2.86139,3494.8,3494.3,7.4]
[1721677565587,3.91029541,3495.4,3494.3,7.4]
[1721677565588,2.86124,3495.0,3494.3,7.4]
[1721677565791,3.0,3495.3,3494.4,5.20264]
[1721677566021,5.86113,3495.2,3494.4,2.341]
[1721677566175,2.86114,3495.1,3494.4,2.341]
[1721677566380,3.0,3495.0,3494.3,7.4]
[1721677566578,2.8614,3494.8,3494.3,7.4]
[1721677566832,2.86163,3494.6,3494.3,7.4]
[1721677567130,2.86163,3494.6,3494.0,2.341]
[1721677567450,2.86142,3494.8,3494.0,3.601329]
[1721677567584,3.47959169,3497.8,3494.0,3.601329]
[1721677567585,1.4975966,3495.6,3494.5,2.341]
[1721677567906,2.86087,3495.5,3494.6,2.86153]
[1721677568234,2.86087,3495.5,3494.5,2.341]
[1721677568235,3.0,3495.7,3494.8,2.202]
[1721677568382,2.86079,3495.6,3494.8,2.202]
[1721677568743,3.0,3495.5,3494.9,0.792499]
[1721677568883,5.86082,3495.5,3494.9,0.792499]
[1721677569220,5.86086,3495.5,3494.9,0.792499]
[1721677569381,2.8609,3495.4,3494.6,2.86154]
[1721677569577,2.86103,3495.3,3494.5,2.341]
[1721677569785,2.8609,3495.4,3494.5,5.20261]
[1721677570006,2.861,3495.3,3494.5,5.20261]
[1721677570218,2.86107,3495.2,3494.5,2.341]
[1721677570537,2.86107,3495.2,3494.6,1.480471]
[1721677572123,2.86133,3494.9,3494.6,1.480471]
[1721677572432,2.86111,3495.2,3494.2,2.8618]
[1721677572731,2.86116,3495.1,3494.3,2.86179]
[1721677572929,2.86116,3495.1,3494.4,1.547354]
[1721677573523,2.86121,3495.1,3494.4,1.547354]
[1721677574522,2.86123,3495.0,3494.4,1.547354]
[1721677575026,2.86102,3495.3,3494.4,1.547354]
[1721677575027,2.86113,3495.2,3494.4,1.547354]
[1721677575490,2.86129,3495.0,3494.4,1.547354]
[1721677575812,2.86129,3495.0,3494.5,0.4409164]
[1721677575813,2.86133,3494.9,3494.5,0.4409164]
[1721677575984,2.86133,3494.9,3494.4,1.547354]
[1721677576429,3.0,3495.5,3494.4,1.547354]
[1721677576641,2.86088,3495.5,3494.7,2.86142]
[1721677576791,2.86088,3495.5,3494.6,2.4408]
[1721677576792,2.86088,3495.5,3494.8,2.86134]
[1721677577105,2.86088,3495.5,3494.7,2.86147]
[1721677577278,2.86091,3495.4,3494.8,0.816386]
[1721677577932,2.86107,3495.2,3494.8,0.816386]
[1721677578140,2.86107,3495.2,3494.6,2.4408]
[1721677578141,2.86111,3495.2,3494.6,2.4408]
[1721677578703,5.72224,3495.2,3494.6,2.4408]
[1721677578890,2.86115,3495.1,3494.6,2.4408]
[1721677579095,2.86123,3495.0,3494.4,1.547354]
[1721677579820,2.86131,3494.9,3494.4,1.547354]
[1721677580024,2.86109,3495.2,3494.1,7.4]
[1721677580231,5.18084,3495.4,3494.2,2.2597]
[1721677580519,5.72241,3495.1,3494.2,5.12151]
[1721677580727,2.86119,3495.1,3494.3,2.91736562]
[1721677580937,2.3199,3495.4,3494.3,2.91736562]
[1721677580938,2.8614,3494.8,3494.3,2.91736562]
[1721677581084,2.86144,3494.8,3494.2,2.2597]
[1721677581522,2.86168,3494.5,3494.1,7.4]
[1721677581825,2.86165,3494.5,3494.1,7.4]
[1721677582489,2.3199,3495.4,3494.1,7.4]
[1721677582799,4.7,3495.5,3494.1,7.4]
[1721677582800,5.72376,3494.2,3494.1,7.4]
[1721677583005,5.72376,3494.2,3493.4,2.4891]
[1721677583006,2.86209,3494.0,3493.5,7.4]
[1721677583414,2.86214,3493.9,3493.5,7.4]
[1721677583616,2.86235,3493.7,3493.1,19.64]
[1721677583810,2.86235,3493.7,3493.0,2.4891]
[1721677583811,2.86234,3493.7,3493.2,2.719402]
[1721677584009,2.86239,3493.6,3493.0,2.4891]
[1721677585411,2.86246,3493.5,3493.0,2.4891]
[1721677585826,2.86244,3493.6,3493.0,2.4891]
[1721677586228,2.86209,3494.0,3493.0,2.4891]
[1721677586539,2.86212,3494.0,3493.1,0.24891]
[1721677586746,3.0,3494.5,3493.1,0.24891]
[1721677586966,2.86212,3494.0,3493.2,2.86264]
[1721677587440,2.86195,3494.2,3493.2,2.86266]
[1721677587611,3.0,3494.1,3493.4,2.86247]
[1721677587935,3.0,3494.1,3493.5,2.86245]
[1721677588154,3.0,3494.2,3493.5,2.86245]
[1721677588349,5.86193,3494.2,3493.4,1.337404]
[1721677588635,5.86193,3494.2,3493.4,4.199884]
[1721677588836,3.0,3494.2,3493.6,2.86236]
[1721677589036,3.0,3494.2,3493.6,3.5685444]
[1721677589724,2.86164,3494.5,3493.6,3.5685444]
[1721677589725,3.0,3494.3,3493.6,3.5685444]
[1721677590042,2.86115,3495.1,3493.6,3.5685444]
[1721677590043,2.8612,3495.1,3494.0,2.86198]
[1721677590337,2.86135,3494.9,3494.1,2.86196]
[1721677590637,2.86115,3495.1,3494.2,2.86183]
[1721677590843,2.86115,3495.1,3494.4,2.86167]
[1721677591196,2.86139,3494.9,3494.3,0.286183]
[1721677591399,2.86135,3494.9,3494.3,0.286183]
[1721677591902,5.72272,3494.9,3494.3,0.286183]
[1721677592238,2.86135,3494.9,3494.3,0.286183]
[1721677592440,2.86141,3494.8,3494.3,0.286183]
[1721677592933,2.86141,3494.8,3493.9,10.26212]
[1721677592934,1.7,3495.2,3493.9,7.4]
[1721677593135,2.86192,3494.2,3493.9,7.4]
[1721677593301,2.86192,3494.2,3493.4,11.599874]
[1721677593503,2.86192,3494.2,3493.5,2.86245]
[1721677593827,2.8618,3494.3,3493.6,1.6867664]
[1721677594238,2.8616,3494.6,3493.6,1.6867664]
[1721677594444,2.86158,3494.6,3493.8,2.86214]
[1721677594820,2.86158,3494.6,3493.9,2.86212]
[1721677595015,2.86158,3494.6,3493.7,2.86229]
[1721677595016,2.8617,3494.5,3493.7,2.86222]
[1721677595222,2.8617,3494.5,3493.8,0.74114364]
[1721677595428,2.86146,3494.8,3494.1,2.86193]
[1721677595805,2.86123,3495.0,3494.3,2.86177]
[1721677596159,3.0,3494.9,3494.3,2.86177]
[1721677596374,2.4385,3496.0,3495.1,2.86114]
[1721677596503,2.86054,3495.9,3495.1,2.86114]
[1721677596703,2.86046,3496.0,3495.2,2.86105]
[1721677596910,0.01,3496.3,3495.4,2.86085]
[1721677597118,0.01,3496.3,3495.5,2.86076]
[1721677597119,2.87017,3496.3,3495.5,2.86076]
[1721677597342,2.86024,3496.2,3495.4,2.4052]
[1721677597546,2.86049,3495.9,3495.4,2.4052]
[1721677597744,2.8702,3496.3,3495.4,8.12691]
[1721677597925,2.8702,3496.3,3495.4,2.4052]
[1721677598116,2.86033,3496.1,3495.4,2.4052]
[1721677598352,3.0,3496.0,3495.4,2.4052]
[1721677599345,3.0,3496.0,3495.4,5.26608]
[1721677599585,2.8702,3496.3,3495.4,5.26608]
[1721677599586,3.0,3496.1,3495.5,3.673481]
[1721677599890,3.0,3496.2,3495.5,3.673481]
[1721677600385,3.0,3496.2,3495.5,0.812711]
[1721677600573,3.0,3496.2,3495.4,2.4052]
[1721677600574,2.86033,3496.1,3495.4,2.4052]
[1721677600776,3.0,3496.0,3495.4,2.4052]
[1721677600984,2.87017,3496.3,3495.6,2.86068]
[1721677601158,2.87017,3496.3,3495.5,2.86081]
[1721677601490,0.01,3496.3,3495.6,0.812698]
[1721677601651,0.01,3496.3,3495.7,2.86065]
[1721677601652,3.01,3496.3,3495.7,2.86065]
[1721677601848,0.01,3496.3,3495.9,2.86042]
[1721677602486,0.01,3496.3,3496.0,2.86039]
[1721677602979,0.01,3496.3,3495.8,2.8605]
[1721677603180,0.01,3496.3,3495.9,0.6533818]
[1721677603561,0.01,3496.3,3496.0,2.86038]
[1721677603763,0.01,3496.3,3495.9,3.5138618]
[1721677604897,0.01,3496.3,3496.0,2.86034]
[1721677605196,0.01,3496.3,3496.2,2.86024]
[1721677605381,0.01,3496.3,3496.2,6.07184218]
[1721677606609,0.01,3496.3,3496.2,3.21160218]
[1721677607280,0.01,3496.3,3496.2,0.35136218]
[1721677608620,0.01,3496.3,3496.2,3.21160218]
[1721677609132,0.01,3496.3,3496.2,0.35136218]
[1721677609423,0.01,3496.3,3495.9,3.5138618]
[1721677610117,0.01,3496.3,3495.9,3.5138118]
[1721677611473,0.01,3496.3,3496.2,2.86024]
[1721677611681,0.01,3496.3,3496.2,5.72048]
[1721677612325,0.01,3496.3,3496.2,11.51572]
[1721677612524,0.01,3496.3,3496.2,13.26447818]
[1721677614576,0.01,3496.3,3496.2,18.58271818]
[1721677614779,0.1502375,3496.4,3496.3,11.44064]
[1721677615293,0.1502375,3496.4,3496.3,8.58048]
[1721677615683,0.1502375,3496.4,3496.3,10.98638]
[1721677616016,0.1502375,3496.4,3496.3,13.42724682]
[1721677616392,0.005,3497.3,3497.2,2.85943]
[1721677617635,0.005,3497.3,3497.1,2.85947]
[1721677617777,0.005,3497.3,3497.2,2.85943]
[1721677617984,0.005,3497.3,3497.2,0.571907]
[1721677618226,0.005,3497.3,3496.8,2.935]
[1721677618503,0.005,3497.3,3497.1,2.85948]
[1721677618707,0.005,3497.3,3497.0,2.199]
[1721677618905,0.005,3497.3,3497.0,5.05853]
[1721677619118,0.005,3497.3,3497.0,2.199]
[1721677619337,0.005,3497.3,3497.0,5.850409]
[1721677620230,0.005,3497.3,3497.0,2.990839]
[1721677620598,0.005,3497.3,3497.0,0.791839]
[1721677620967,0.005,3497.3,3497.0,2.199]
[1721677621527,0.005,3497.3,3497.2,2.85943]
[1721677622418,0.005,3497.3,3497.1,2.8595]
[1721677622731,0.005,3497.3,3497.0,2.199]
[1721677623632,0.005,3497.3,3497.2,2.85943]
[1721677623787,0.005,3497.3,3497.2,3.651231]
[1721677624417,0.005,3497.3,3497.2,0.791801]
[1721677624628,0.005,3497.3,3496.6,9.599]
[1721677624811,0.005,3497.3,3497.1,2.85946]
[1721677625821,0.005,3497.3,3496.9,2.85962]
[1721677626029,0.005,3497.3,3496.7,2.85979]
[1721677626331,0.005,3497.3,3497.2,2.85943]
[1721677626629,0.005,3497.3,3497.2,5.71886]
[1721677627017,0.005,3497.3,3497.2,8.57829]
[1721677627199,0.005,3497.3,3497.2,11.43772]
[1721677627387,2.85783,3499.2,3498.2,2.85861]
[1721677627587,1.145573,3499.7,3499.3,2.85771]
[1721677627884,2.85661,3500.7,3498.6,5.05728]
[1721677627885,2.85762,3499.5,3498.8,7.4]
[1721677628106,2.4279,3500.2,3498.8,7.4]
[1721677628386,2.8576,3499.5,3498.8,7.4]
[1721677628595,2.85772,3499.3,3498.8,7.4]
[1721677628832,0.0608889,3501.0,3498.7,2.199]
[1721677629034,2.85739,3499.7,3498.7,2.199]
[1721677629215,2.85746,3499.7,3498.7,5.0572]
[1721677629423,2.85751,3499.6,3498.7,5.0572]
[1721677629628,2.85751,3499.6,3497.9,3.018]
[1721677629629,2.85763,3499.4,3498.3,5.05746]
[1721677629847,2.85763,3499.4,3498.4,2.85844]
[1721677629848,2.85786,3499.2,3498.4,2.85844]
[1721677630216,2.85776,3499.3,3498.4,2.85844]
[1721677630410,0.58652075,3499.6,3498.2,2.85861]
[1721677630623,2.85797,3499.0,3498.1,2.85865]
[1721677630928,2.85797,3499.0,3497.5,10.418]
[1721677630929,2.85805,3498.9,3497.8,2.85893]
[1721677631228,2.85785,3499.2,3498.3,2.85849]
[1721677631423,2.4947,3499.4,3497.5,7.4]
[1721677631424,3.0,3499.1,3497.5,7.4]
[1721677631647,2.85808,3498.9,3497.4,5.3465]
[1721677631845,2.85782,3499.2,3498.1,2.85864]
[1721677632149,4.385252,3499.1,3497.4,5.3465]
[1721677632301,2.85835,3498.6,3497.6,2.85909]
[1721677632508,1.385252,3499.1,3497.7,2.85901]
[1721677632702,2.85815,3498.8,3497.9,2.85884]
[1721677632915,2.85815,3498.8,3498.0,2.85876]
[1721677633112,2.85822,3498.7,3498.0,2.85876]
[1721677633325,2.85813,3498.8,3497.8,2.85893]
[1721677633608,2.85804,3498.9,3498.0,2.85872]
[1721677633960,2.85795,3499.0,3498.3,2.85845]
[1721677634133,1.385252,3499.1,3498.1,2.85862]
[1721677634302,2.85804,3498.9,3498.1,2.85862]
[1721677634813,4.243122,3499.1,3498.2,2.8586]
[1721677635014,2.85797,3499.0,3498.1,2.85862]
[1721677635239,2.85812,3498.8,3498.1,2.85862]
[1721677635414,2.85797,3499.0,3498.1,2.85862]
[1721677635603,0.7243222,3499.0,3498.0,7.4]
[1721677635804,2.85854,3498.3,3498.0,7.4]
[1721677636042,2.85854,3498.3,3497.4,8.20571]
[1721677636043,2.85854,3498.3,3497.5,7.4]
[1721677636256,2.85824,3498.7,3497.6,2.85903]
[1721677636483,2.85845,3498.4,3497.5,7.4]
[1721677636616,2.85845,3498.4,3497.5,11.819743]
[1721677636813,2.85854,3498.3,3497.5,11.819703]
[1721677637251,2.85827,3498.7,3497.9,2.85885]
[1721677637566,2.85827,3498.7,3497.8,2.85886]
[1721677637852,5.71655,3498.7,3497.8,5.71773]
[1721677638064,5.71655,3498.7,3497.8,2.85886]
[1721677638351,2.3371,3498.8,3498.1,2.85863]
[1721677638352,2.85817,3498.8,3498.1,2.85863]
[1721677638568,3.0,3498.7,3498.1,2.85863]
[1721677638773,3.0,3498.7,3497.9,2.85885]
[1721677638979,2.85833,3498.6,3497.9,2.85885]
[1721677639139,3.0,3498.7,3497.9,2.85885]
[1721677639338,3.0,3498.7,3497.9,3.54877733]
[1721677639650,2.85828,3498.6,3497.9,0.68997733]
[1721677639978,2.85828,3498.6,3497.9,3.54878733]
[1721677640452,2.85828,3498.6,3497.9,3.54876733]
[1721677640657,3.0,3498.7,3498.1,2.85868]
[1721677640829,5.85808,3498.9,3498.2,2.85861]
[1721677641029,3.0,3498.9,3498.3,2.85852]
[1721677641568,2.4363,3499.7,3498.4,2.98716516]
[1721677641767,2.8578,3499.2,3498.4,13.18841]
[1721677641969,2.85785,3499.2,3498.4,13.18841]
[1721677642124,2.4363,3499.7,3498.4,7.4]
[1721677642125,2.85811,3498.9,3498.4,7.4]
[1721677642329,2.85811,3498.9,3498.0,15.0987]
[1721677642330,2.85811,3498.9,3498.0,22.4987]
[1721677642570,2.85811,3498.9,3498.1,2.91736562]
[1721677642571,2.85817,3498.8,3498.1,2.91736562]
[1721677642750,2.85821,3498.7,3498.1,2.91736562]
[1721677643085,2.85817,3498.8,3498.0,22.49872]
[1721677643226,5.85766,3499.4,3498.0,22.49872]
[1721677643432,2.85826,3498.7,3498.0,19.64]
[1721677643663,2.85829,3498.6,3498.0,19.64]
[1721677644111,2.85819,3498.8,3498.0,22.49876]
[1721677644309,2.85822,3498.7,3498.0,22.55736562]
[1721677644458,2.85834,3498.6,3498.0,2.91736562]
[1721677644663,5.71631,3498.8,3498.0,5.77613562]
[1721677644913,2.85812,3498.8,3498.0,5.77613562]
[1721677645073,0.55,3499.3,3498.0,5.77608562]
[1721677645280,2.85809,3498.9,3498.2,2.85859]
[1721677645811,2.85821,3498.7,3497.8,2.85889]
[1721677645964,5.85828,3498.6,3497.9,2.85884]
[1721677646160,2.85841,3498.5,3497.7,13.11798]
[1721677646490,2.85841,3498.5,3497.8,2.85891]
[1721677646686,2.85858,3498.3,3497.7,7.4]
[1721677646888,2.85841,3498.5,3497.7,7.4]
[1721677647092,2.85849,3498.4,3497.7,10.25901]
[1721677647389,2.85849,3498.4,3497.7,10.25896]
[1721677647599,2.85855,3498.3,3497.7,7.4]
[1721677648166,2.85863,3498.2,3497.7,7.4]
[1721677648496,2.85856,3498.3,3497.7,7.4]
[1721677648694,2.85886,3497.9,3497.7,7.4]
[1721677649119,2.85909,3497.7,3497.1,7.4]
[1721677649290,0.6546341,3498.3,3496.8,12.24]
[1721677649291,2.85927,3497.4,3496.8,12.24]
[1721677649621,2.85975,3496.8,3496.7,7.4]
[1721677649918,3.0,3498.0,3496.3,7.4]
[1721677649919,3.55,3498.0,3496.3,7.4]
[1721677650077,3.55,3498.0,3496.8,2.85973]
[1721677650078,3.0,3497.5,3496.8,2.85973]
[1721677650385,3.51251,3497.9,3496.4,2.257]
[1721677650386,2.85895,3497.8,3497.1,2.85951]
[1721677650596,0.829471,3498.5,3497.5,2.8591]
[1721677650813,3.20839,3498.5,3497.8,2.85893]
[1721677651130,2.85839,3498.5,3497.8,0.05717246]
[1721677651290,2.85821,3498.7,3497.8,2.91606246]
[1721677651496,2.85796,3499.0,3497.7,2.199]
[1721677651700,2.85796,3499.0,3497.7,5.05801]
[1721677651701,2.85844,3498.5,3497.7,5.05801]
[1721677651910,2.8585,3498.4,3497.8,1.024957]
[1721677652092,2.85784,3499.2,3497.9,0.05717131]
[1721677652416,3.061855,3499.3,3498.0,2.85876]
[1721677652417,2.85824,3498.7,3498.0,2.85876]
[1721677652622,2.85824,3498.7,3497.9,10.25885]
[1721677652788,2.85824,3498.7,3497.9,7.4]
[1721677652987,5.71651,3498.7,3497.9,11.504644]
[1721677653205,2.85824,3498.7,3498.0,2.85872]
[1721677653408,2.85824,3498.7,3497.9,11.504644]
[1721677653626,2.85836,3498.5,3497.9,8.645794]
[1721677653795,2.85824,3498.7,3497.9,1.245794]
[1721677653990,2.85837,3498.5,3498.0,0.57262963]
[1721677654220,2.85824,3498.7,3498.0,0.57262963]
[1721677654387,2.85824,3498.7,3498.0,3.43139963]
[1721677654583,2.85814,3498.8,3498.0,3.43139963]
[1721677654828,2.85833,3498.6,3498.0,0.57262963]
[1721677655031,2.85807,3498.9,3498.0,3.43139963]
[1721677655270,3.0,3498.8,3498.0,3.43139963]
[1721677655429,3.0,3498.8,3498.1,0.62902696]
[1721677655430,2.85828,3498.6,3498.1,0.62902696]
[1721677655927,2.85836,3498.5,3498.1,0.62902696]
[1721677656131,2.85836,3498.5,3498.0,0.57262963]
[1721677656435,2.85837,3498.5,3498.0,0.57262963]
[1721677656622,5.85815,3498.8,3497.9,2.85884]
[1721677656826,3.0,3498.8,3497.7,2.199]
[1721677657138,2.85783,3499.2,3498.3,2.85847]
[1721677657342,2.4473375,3499.8,3498.2,0.05716425]
[1721677657343,2.85797,3499.0,3498.2,0.05716425]
[1721677657543,2.85797,3499.0,3498.3,2.85848]
[1721677657925,2.85804,3498.9,3498.1,12.45763]
[1721677658183,2.85813,3498.8,3498.1,12.45763]
[1721677658329,2.85797,3499.0,3498.2,2.8586]
[1721677658522,2.85797,3499.0,3498.2,1.531642]
[1721677658740,2.85783,3499.2,3498.2,1.531642]
[1721677658962,2.85813,3498.8,3498.2,1.531642]
[1721677659136,2.85814,3498.8,3498.2,1.531642]
[1721677659337,2.85808,3498.9,3498.2,4.390232]
[1721677659581,2.85808,3498.9,3498.3,1.3989232]
[1721677659791,0.1033966,3498.9,3498.3,4.2574332]
[1721677659955,0.1033966,3498.9,3498.3,1.3989232]
[1721677660284,2.85829,3498.6,3498.1,7.4]
[1721677660588,2.85855,3498.3,3498.1,7.4]
[1721677660752,2.85855,3498.3,3497.7,2.199]
[1721677660940,5.71714,3498.3,3497.6,2.85903]
[1721677661140,2.85855,3498.3,3497.6,2.85903]
[1721677661444,2.85855,3498.3,3497.7,1.259143]
[1721677662764,2.85873,3498.1,3497.5,9.7324]
[1721677662963,2.85866,3498.2,3497.5,9.7324]
[1721677663151,2.85845,3498.4,3497.7,2.85895]
[1721677663357,0.1033966,3498.8,3497.8,1.545052]
[1721677663358,2.85854,3498.3,3497.8,1.545052]
[1721677663767,3.0,3498.6,3497.5,12.59157]
[1721677663768,2.85842,3498.5,3497.7,2.85894]
[1721677664499,2.85857,3498.3,3497.6,2.85902]
[1721677664715,2.85857,3498.3,3497.6,5.71807]
[1721677664988,2.85861,3498.2,3497.5,12.59158]
[1721677665151,2.85861,3498.2,3497.6,1.764991]
[1721677665562,2.85841,3498.5,3497.6,1.764991]
[1721677665776,2.85849,3498.4,3497.7,2.85902]
[1721677665948,2.85853,3498.3,3497.7,2.85902]
[1721677666150,2.85881,3498.0,3497.5,7.4]
[1721677666469,3.1033966,3498.8,3497.5,7.4]
[1721677666470,2.85885,3497.9,3497.5,7.4]
[1721677667966,2.8591,3497.7,3497.5,7.4]
[1721677668291,2.8591,3497.6,3497.5,7.4]
[1721677668450,2.8591,3497.7,3496.9,12.66392]
[1721677668651,2.85915,3497.6,3496.9,12.66392]
[1721677668890,2.85873,3498.1,3496.9,12.66392]
[1721677668891,2.85873,3498.1,3496.9,9.8043]
[1721677669193,2.85902,3497.7,3497.0,2.85953]
[1721677669352,2.85909,3497.7,3496.9,9.8043]
[1721677669691,0.55,3498.0,3496.9,9.8043]
[1721677669911,2.85959,3497.0,3496.9,7.4]
[1721677670394,5.71918,3497.0,3496.9,7.4]
[1721677670587,2.85959,3497.0,3496.9,7.4]
[1721677670885,2.85921,3497.5,3496.9,7.4]
[1721677670886,2.85938,3497.3,3496.9,7.4]
[1721677671088,0.55,3497.2,3496.9,7.4]
[1721677671300,3.40943,3497.2,3496.9,7.4]
[1721677671506,0.55,3497.2,3496.9,7.4]
[1721677671711,5.85896,3497.8,3496.9,7.4]
[1721677671712,0.55,3497.3,3496.9,7.4]
[1721677671928,1.79674482,3498.3,3496.9,7.4]
[1721677671929,2.85903,3497.7,3497.0,5.05854]
[1721677672205,2.85911,3497.6,3496.9,8.14]
[1721677672392,2.85927,3497.4,3496.9,7.4]
[1721677672592,2.85941,3497.3,3496.9,7.4]
[1721677672794,2.85931,3497.4,3496.9,7.4]
[1721677673108,0.55,3497.3,3496.9,7.4]
[1721677673304,3.40935,3497.3,3496.6,5.05886]
[1721677673503,3.40935,3497.3,3496.7,5.615709]
[1721677673504,0.55,3497.3,3496.7,5.615709]
[1721677673733,0.55,3497.5,3496.7,2.755889]
[1721677673935,2.85928,3497.4,3496.7,2.755889]
[1721677674251,2.85915,3497.6,3496.9,2.85965]
[1721677674420,2.85915,3497.6,3497.0,2.85958]
[1721677674730,2.85915,3497.6,3496.9,0.7814539]
[1721677674731,2.85911,3497.6,3496.9,0.7814539]
[1721677674940,2.8592,3497.5,3496.9,0.7814539]
[1721677675109,3.0,3498.2,3497.2,2.85938]
[1721677675309,3.0,3498.2,3497.3,2.8593]
[1721677675656,3.0,3498.2,3497.4,3.38531]
[1721677675797,3.0,3498.2,3497.5,2.85913]
[1721677675798,2.85863,3498.2,3497.5,2.85913]
[1721677676221,2.85857,3498.3,3497.6,2.85905]
[1721677676534,5.85849,3498.4,3497.7,2.85901]
[1721677676830,2.85855,3498.3,3497.5,2.8591]
[1721677677036,0.55,3498.2,3497.6,0.338521]
[1721677677197,0.55,3498.2,3497.6,3.197611]
[1721677677394,2.85853,3498.3,3497.7,2.85896]
[1721677678393,2.85853,3498.3,3497.6,0.338521]
[1721677678626,2.85879,3498.0,3497.6,0.338521]
[1721677678842,5.14552,3498.6,3497.6,0.338521]
[1721677679048,2.85865,3498.2,3497.4,3.38536]
[1721677679755,2.85869,3498.1,3497.4,3.38536]
[1721677679923,2.85862,3498.2,3497.5,2.85918]
[1721677680125,2.85853,3498.3,3497.6,2.8591]
[1721677680346,2.85865,3498.2,3497.5,2.85917]
[1721677680546,2.85869,3498.1,3497.6,0.624458]
[1721677680773,2.85878,3498.0,3497.4,0.52611]
[1721677680917,3.55,3498.5,3497.4,3.38536]
[1721677680918,2.85863,3498.2,3497.4,3.38536]
[1721677681122,2.85875,3498.1,3497.4,3.38536]
[1721677681521,6.40838,3498.5,3497.7,2.85902]
[1721677681762,6.40838,3498.5,3497.6,2.85907]
[1721677681763,2.85854,3498.3,3497.6,2.85907]
[1721677681933,2.85861,3498.2,3497.6,0.62444]
[1721677682745,2.85854,3498.3,3497.6,0.62444]
[1721677682948,2.85862,3498.2,3497.6,0.62444]
[1721677683146,2.85873,3498.1,3497.6,0.62444]
[1721677683353,2.85873,3498.1,3497.2,2.85937]
[1721677683556,2.85876,3498.1,3497.1,5.26125]
[1721677683781,2.85882,3498.0,3497.3,2.85933]
[1721677683985,2.85882,3498.0,3497.3,2.8593]
[1721677684274,2.85858,3498.3,3497.4,2.85925]